[Event "44th Chess Olympiad Open 2022"]
[Site "Chennai"]
[Date "2022.08.07"]
[Round "9.70"]
[White "Drayton, Anthony"]
[Black "Sanches, Casanova Romario"]
[Result "1-0"]
[WhiteElo "1928"]
[BlackElo "2066"]
[Annotator "NA"]
[PlyCount "103"]
[EventDate "2022.??.??"]
[TimeControl "60"]

1. d4 {[%emt 0:00:43]} Nf6 {[%emt 0:00:07]} 2. Bf4 {[%emt 0:00:12]} c5 {
[%emt 0:00:35]} 3. d5 {[%emt 0:00:42]} Qb6 {[%emt 0:00:57]} 4. Nc3 {[%emt 0:00:
00]} Qxb2 {[%emt 0:05:42]} 5. Bd2 {[%emt 0:00:14]} Qb6 {[%emt 0:00:32]} 6. e4 {
[%emt 0:00:11]} d6 {[%emt 0:02:03]} 7. f4 {[%emt 0:00:15]} g6 {[%emt 0:10:54]}
8. e5 {[%emt 0:01:28]} dxe5 {[%emt 0:27:07]} 9. fxe5 {[%emt 0:00:08]} Bg4 {
[%emt 0:00:35]} 10. Bb5+ {[%emt 0:00:16]} Nbd7 {[%emt 0:10:46]} 11. Bxd7+ {
[%emt 0:00:17]} Kxd7 {[%emt 0:00:05]} 12. Qb1 {[%emt 0:00:23]} Nh5 {[%emt 0:00:
00]} 13. Qxb6 {[%emt 0:04:14]} axb6 {[%emt 0:00:03]} 14. Rb1 {[%emt 0:00:19]}
Ra6 {[%emt 0:00:57]} 15. Kf2 {[%emt 0:02:50]} Bf5 {[%emt 0:02:23]} 16. Rb2 {
[%emt 0:00:56]} g5 {[%emt 0:14:49]} 17. Bxg5 {[%emt 0:03:19]} Rg8 {[%emt 0:00:
00]} 18. Nf3 {[%emt 0:00:35]} Bg4 {[%emt 0:06:45]} 19. Bd2 {[%emt 0:00:44]}
Bxf3 {[%emt 0:00:26]} 20. Kxf3 {[%emt 0:00:47]} Ng7 {[%emt 0:01:32]} 21. g4 {
[%emt 0:00:53]} h5 {[%emt 0:00:56]} 22. h3 {[%emt 0:00:22]} Rh8 {[%emt 0:00:47]
} 23. Rhb1 {[%emt 0:01:56]} Kc7 {[%emt 0:01:04]} 24. Bf4 {[%emt 0:01:04]} e6 {
[%emt 0:00:59]} 25. d6+ {[%emt 0:00:37]} Kc6 {[%emt 0:00:15]} 26. a4 {[%emt 0:
00:00]} hxg4+ {[%emt 0:02:15]} 27. hxg4 {[%emt 0:00:29]} f6 {[%emt 0:00:06]}
28. exf6 {[%emt 0:01:59]} Ne8 {[%emt 0:01:18]} 29. d7 {[%emt 0:03:22]} Kxd7 {
[%emt 0:00:14]} 30. Rxb6 {[%emt 0:00:19]} Rh3+ {[%emt 0:01:23]} 31. Bg3 {
[%emt 0:02:51]} Nxf6 {[%emt 0:01:47]} 32. Rxb7+ {[%emt 0:00:18]} Ke8 {[%emt 0:
00:00]} 33. Kg2 {[%emt 0:02:20]} Rh7 {[%emt 0:00:26]} 34. Rb8+ {[%emt 0:00:44]}
Kf7 {[%emt 0:00:07]} 35. Rf1 {[%emt 0:00:27]} Kg7 {[%emt 0:00:57]} 36. Be5 {
[%emt 0:01:09]} Bd6 {[%emt 0:00:32]} 37. Bxf6+ {[%emt 0:00:24]} Kg6 {[%emt 0:
00:00]} 38. Rg8+ {[%emt 0:00:24]} Kf7 {[%emt 0:00:31]} 39. Rd8 {[%emt 0:00:21]}
Rh2+ {[%emt 0:00:38]} 40. Kg1 {[%emt 0:00:19]} Rxc2 {[%emt 0:00:31]} 41. Ne4 {
[%emt 0:30:36]} Bh2+ {[%emt 0:09:09]} 42. Kh1 {[%emt 0:00:00]} Kg6 {[%emt 0:00:
00]} 43. Ng5 {[%emt 0:00:00]} Ra7 {[%emt 0:02:18]} 44. Rg8+ {[%emt 0:00:00]}
Kh6 {[%emt 0:00:15]} 45. Nxe6 {[%emt 0:00:00]} Bd6 {[%emt 0:02:41]} 46. g5+ {
[%emt 0:00:00]} Kh5 {[%emt 0:01:29]} 47. Rh8+ {[%emt 0:00:00]} Kg4 {[%emt 0:00:
00]} 48. g6 {[%emt 0:00:00]} Ra8 {[%emt 0:05:20]} 49. g7 {[%emt 0:02:46]} Rg8 {
[%emt 0:04:03]} 50. Rxg8 {[%emt 0:00:00]} Rh2+ {[%emt 0:00:41]} 51. Kg1 {
[%emt 0:00:00]} Kg3 {[%emt 0:01:37]} 52. Rh8 {[%emt 0:00:00]} 1-0

[Event "44th Chess Olympiad Open 2022"]
[Site "Chennai"]
[Date "2022.08.07"]
[Round "9.70"]
[White "Kalidjo, Imaan"]
[Black "Neto, Roberto"]
[Result "1-0"]
[WhiteElo "1819"]
[BlackElo "1663"]
[Annotator "NA RC"]
[PlyCount "130"]
[EventDate "2022.??.??"]
[TimeControl "60"]

1. b3 {[%emt 0:00:03]} e5 {[%emt 0:01:23]} 2. Bb2 {[%emt 0:00:06]} Nc6 {
[%emt 0:00:16]} 3. e3 {[%emt 0:01:14]} Nf6 {[%emt 0:01:41]} 4. Bb5 {[%emt 0:00:
00]} d6 {[%emt 0:00:30]} 5. d4 {[%emt 0:04:46]} exd4 {[%emt 0:03:09]} 6. exd4 {
[%emt 0:00:32]} a6 {[%emt 0:07:06]} 7. Bxc6+ {[%emt 0:05:36]} bxc6 {[%emt 0:00:
00]} 8. Nc3 {[%emt 0:02:43]} Be7 {[%emt 0:06:57]} 9. Qd3 {[%emt 0:05:32]} Bd7 {
[%emt 0:05:05]} 10. Nf3 {[%emt 0:07:52]} Nd5 {[%emt 0:05:36]} 11. O-O {[%emt 0:
00:00]} O-O {[%emt 0:00:25]} 12. Ne2 {[%emt 0:01:16]} Qc8 {[%emt 0:09:56]} 13.
c4 {[%emt 0:03:34]} Bf5 {[%emt 0:07:41]} 14. Qd2 {[%emt 0:02:16]} Nf6 {[%emt 0:
00:00]} 15. Ng3 {[%emt 0:06:32]} Ne4 {[%emt 0:07:26]} 16. Qf4 {[%emt 0:05:58]}
Nxg3 {[%emt 0:02:08]} 17. fxg3 {[%emt 0:01:58]} Bf6 {[%emt 0:04:20]} 18. Ne5 {
[%emt 0:06:53]} Bd7 {[%emt 0:01:58]} 19. Nd3 {[%emt 0:20:16]} c5 {[%emt 0:00:
00]} 20. dxc5 {[%emt 0:01:08]} Bxb2 {[%emt 0:01:51]} 21. Nxb2 {[%emt 0:00:01]}
dxc5 {[%emt 0:00:35]} 22. Nd3 {[%emt 0:01:06]} Qb7 {[%emt 0:03:18]} 23. Nxc5 {
[%emt 0:01:46]} Qb6 {[%emt 0:00:14]} 24. Qf2 {[%emt 0:00:23]} Bc6 {[%emt 0:00:
00]} 25. Rae1 {[%emt 0:00:39]} f6 {[%emt 0:05:57]} 26. Ne6 {[%emt 0:02:16]}
Qxf2+ {[%emt 0:02:17]} 27. Kxf2 {[%emt 0:00:02]} Rf7 {[%emt 0:00:28]} 28. Rd1 {
[%emt 0:00:37]} Re7 {[%emt 0:01:04]} 29. Nd4 {[%emt 0:02:58]} Be4 {[%emt 0:00:
00]} 30. Rfe1 {[%emt 0:00:14]} Rae8 {[%emt 0:00:30]} 31. Nf3 {[%emt 0:03:38]}
Kf7 {[%emt 0:00:40]} 32. Nd2 {[%emt 0:00:35]} Bc6 {[%emt 0:00:49]} 33. Rxe7+ {
[%emt 0:00:14]} Rxe7 {[%emt 0:00:09]} 34. Nf3 {[%emt 0:00:07]} Be4 {[%emt 0:00:
00]} 35. Re1 {[%emt 0:00:21]} Bg6 {[%emt 0:00:35]} 36. Rxe7+ {[%emt 0:00:29]}
Kxe7 {[%emt 0:00:09]} 37. Ke3 {[%emt 0:00:33]} c5 {[%emt 0:00:34]} 38. Kd2 {
[%emt 0:01:24]} Kd6 {[%emt 0:00:29]} 39. Kc3 {[%emt 0:00:10]} a5 {[%emt 0:00:
00]} 40. a3 {[%emt 0:00:28]} Be4 {[%emt 0:00:40]} 41. b4 {[%emt 0:31:17]} cxb4+
{[%emt 0:30:38]} 42. axb4 {[%emt 0:00:04]} axb4+ {[%emt 0:00:45]} 43. Kxb4 {
[%emt 0:00:01]} g5 {[%emt 0:00:22]} 44. g4 {[%emt 0:04:23]} h6 {[%emt 0:07:03]}
45. c5+ {[%emt 0:00:00]} Kd7 {[%emt 0:05:51]} 46. Kb5 {[%emt 0:00:00]} Kc7 {
[%emt 0:00:00]} 47. Kc4 {[%emt 0:05:06]} f5 {[%emt 0:00:00]} 48. gxf5 {[%emt 0:
00:00]} Bxf5 {[%emt 0:00:00]} 49. Kd5 {[%emt 0:00:00]} Bd3 {[%emt 0:04:20]} 50.
Nd4 {[%emt 0:00:00]} Bf1 {[%emt 0:00:00]} 51. g3 {[%emt 0:00:00]} Bg2+ {
[%emt 0:00:00]} 52. Ke5 {[%emt 0:00:00]} h5 {[%emt 0:05:22]} 53. Kf5 {[%emt 0:
00:00]} Bh3+ {[%emt 0:00:00]} 54. Kxg5 {[%emt 0:00:00]} Bg4 {[%emt 0:00:00]}
55. h3 {[%emt 0:00:00]} Bxh3 {[%emt 0:00:00]} 56. Kxh5 {[%emt 0:00:00]} Kd7 {
[%emt 0:00:00]} 57. g4 {[%emt 0:00:00]} Bg2 {[%emt 0:00:00]} 58. g5 {[%emt 0:
00:00]} Ke7 {[%emt 0:00:00]} 59. g6 {[%emt 0:00:00]} Bd5 {[%emt 0:00:00]} 60.
Kh6 {[%emt 0:00:00]} Bg8 {[%emt 0:00:00]} 61. Kg7 {[%emt 0:00:00]} Bd5 {
[%emt 0:00:00]} 62. Kh8 {[%emt 0:00:00]} Kf6 {[%emt 0:00:00]} 63. g7 {[%emt 0:
00:00]} Ke5 {[%emt 0:00:00]} 64. g8=Q {[%emt 0:00:37]} Bxg8 {[%emt 0:00:00]}
65. Kxg8 {[%emt 0:00:00]} Kd5 {[%emt 0:00:27]} 1-0

[Event "44th Chess Olympiad Open 2022"]
[Site "Chennai"]
[Date "2022.08.07"]
[Round "9.70"]
[White "Lee, Ethan"]
[Black "Matoewi, Roger"]
[Result "0-1"]
[WhiteElo "1629"]
[BlackElo "2015"]
[Annotator "NA"]
[PlyCount "90"]
[EventDate "2022.??.??"]
[TimeControl "60"]

1. d4 {[%emt 0:00:08]} d5 {[%emt 0:00:20]} 2. Bf4 {[%emt 0:00:21]} c6 {[%emt 0:
00:00]} 3. c4 {[%emt 0:02:00]} e6 {[%emt 0:01:26]} 4. e3 {[%emt 0:00:50]} Nf6 {
[%emt 0:00:18]} 5. Nf3 {[%emt 0:00:57]} Be7 {[%emt 0:00:08]} 6. Nc3 {[%emt 0:
00:00]} Nbd7 {[%emt 0:00:08]} 7. cxd5 {[%emt 0:03:53]} exd5 {[%emt 0:00:17]} 8.
Bd3 {[%emt 0:01:28]} O-O {[%emt 0:00:07]} 9. h3 {[%emt 0:05:18]} Re8 {[%emt 0:
00:00]} 10. O-O {[%emt 0:00:38]} Nf8 {[%emt 0:00:06]} 11. a3 {[%emt 0:03:07]}
Ng6 {[%emt 0:03:45]} 12. Bh2 {[%emt 0:00:13]} Bd6 {[%emt 0:00:24]} 13. b4 {
[%emt 0:07:38]} Bxh2+ {[%emt 0:06:50]} 14. Nxh2 {[%emt 0:00:18]} a6 {[%emt 0:
00:00]} 15. a4 {[%emt 0:06:28]} Qd6 {[%emt 0:05:59]} 16. b5 {[%emt 0:07:34]}
axb5 {[%emt 0:00:41]} 17. axb5 {[%emt 0:00:25]} Bd7 {[%emt 0:02:36]} 18. bxc6 {
[%emt 0:02:21]} bxc6 {[%emt 0:00:29]} 19. Na4 {[%emt 0:01:50]} Nh4 {[%emt 0:00:
00]} 20. Nc5 {[%emt 0:16:38]} Bf5 {[%emt 0:13:38]} 21. Bxf5 {[%emt 0:07:46]}
Nxf5 {[%emt 0:00:07]} 22. Qc2 {[%emt 0:02:06]} g6 {[%emt 0:04:30]} 23. Nf3 {
[%emt 0:00:27]} Rxa1 {[%emt 0:06:58]} 24. Rxa1 {[%emt 0:00:02]} Ne4 {[%emt 0:
00:00]} 25. Nxe4 {[%emt 0:10:02]} dxe4 {[%emt 0:00:21]} 26. Ne5 {[%emt 0:01:25]
} Nxd4 {[%emt 0:07:59]} 27. Nxf7 {[%emt 0:14:19]} Kxf7 {[%emt 0:04:55]} 28.
exd4 {[%emt 0:02:46]} Qxd4 {[%emt 0:01:33]} 29. Rc1 {[%emt 0:00:03]} e3 {
[%emt 0:06:27]} 30. fxe3 {[%emt 0:00:47]} Qxe3+ {[%emt 0:00:09]} 31. Kh1 {
[%emt 0:00:01]} Re6 {[%emt 0:06:30]} 32. Qc5 {[%emt 0:00:41]} Qxc5 {[%emt 0:00:
00]} 33. Rxc5 {[%emt 0:00:06]} Ke7 {[%emt 0:00:09]} 34. Kh2 {[%emt 0:02:02]}
Kd6 {[%emt 0:00:11]} 35. Rc2 {[%emt 0:00:10]} c5 {[%emt 0:00:02]} 36. Kg3 {
[%emt 0:00:40]} Kd5 {[%emt 0:00:13]} 37. Kf3 {[%emt 0:01:16]} c4 {[%emt 0:00:
00]} 38. Rd2+ {[%emt 0:00:23]} Kc5 {[%emt 0:00:07]} 39. Rd8 {[%emt 0:00:05]} c3
{[%emt 0:00:19]} 40. Rc8+ {[%emt 0:00:18]} Rc6 {[%emt 0:00:16]} 41. Rxc6+ {
[%emt 0:31:33]} Kxc6 {[%emt 0:30:06]} 42. Ke3 {[%emt 0:00:21]} Kc5 {[%emt 0:00:
00]} 43. Kd3 {[%emt 0:00:00]} Kb4 {[%emt 0:00:00]} 44. Kc2 {[%emt 0:00:00]} Kc4
{[%emt 0:00:00]} 45. g3 {[%emt 0:00:00]} h6 {[%emt 0:00:00]} 0-1

[Event "44th Chess Olympiad Open 2022"]
[Site "Chennai"]
[Date "2022.08.07"]
[Round "9.71"]
[White "Beukes, Dante M"]
[Black "Cisse, Amadou Lamine"]
[Result "1-0"]
[WhiteElo "2234"]
[BlackElo "2005"]
[Annotator "RC"]
[PlyCount "71"]
[EventDate "2022.??.??"]
[TimeControl "60"]

1. e4 {[%emt 0:00:06]} Nc6 {[%emt 0:00:06]} 2. Nf3 {[%emt 0:01:52]} d6 {
[%emt 0:01:36]} 3. d4 {[%emt 0:00:06]} Nf6 {[%emt 0:00:20]} 4. Nc3 {[%emt 0:00:
00]} Bg4 {[%emt 0:00:25]} 5. Be3 {[%emt 0:00:41]} e5 {[%emt 0:02:00]} 6. d5 {
[%emt 0:00:24]} Ne7 {[%emt 0:02:01]} 7. h3 {[%emt 0:04:16]} Bh5 {[%emt 0:02:04]
} 8. g4 {[%emt 0:06:11]} Bg6 {[%emt 0:00:16]} 9. Nd2 {[%emt 0:00:07]} c6 {
[%emt 0:14:51]} 10. dxc6 {[%emt 0:02:16]} bxc6 {[%emt 0:00:29]} 11. Nc4 {
[%emt 0:00:39]} Nc8 {[%emt 0:00:57]} 12. Bg2 {[%emt 0:00:14]} Rb8 {[%emt 0:00:
00]} 13. O-O {[%emt 0:01:16]} h6 {[%emt 0:06:08]} 14. f4 {[%emt 0:04:15]} Nd7 {
[%emt 0:03:44]} 15. f5 {[%emt 0:06:39]} Bh7 {[%emt 0:02:22]} 16. Qd3 {[%emt 0:
00:00]} f6 {[%emt 0:01:13]} 17. Rad1 {[%emt 0:03:33]} Bg8 {[%emt 0:01:09]} 18.
b3 {[%emt 0:00:52]} Ndb6 {[%emt 0:02:09]} 19. Nxb6 {[%emt 0:09:08]} axb6 {
[%emt 0:02:38]} 20. a4 {[%emt 0:01:18]} Be7 {[%emt 0:02:17]} 21. b4 {[%emt 0:
00:00]} Qd7 {[%emt 0:04:25]} 22. b5 {[%emt 0:00:19]} c5 {[%emt 0:00:25]} 23.
Nd5 {[%emt 0:03:43]} Ra8 {[%emt 0:01:16]} 24. Ra1 {[%emt 0:01:21]} Bd8 {
[%emt 0:01:56]} 25. Rfd1 {[%emt 0:01:18]} Ne7 {[%emt 0:04:15]} 26. Nc3 {
[%emt 0:00:17]} Nc8 {[%emt 0:00:19]} 27. Bf1 {[%emt 0:01:16]} h5 {[%emt 0:00:
00]} 28. Be2 {[%emt 0:02:24]} hxg4 {[%emt 0:05:03]} 29. hxg4 {[%emt 0:03:00]}
g5 {[%emt 0:04:15]} 30. Kg2 {[%emt 0:04:44]} Bc7 {[%emt 0:07:31]} 31. Nd5 {
[%emt 0:02:27]} Bd8 {[%emt 0:02:23]} 32. Rh1 {[%emt 0:00:06]} Rxh1 {[%emt 0:00:
00]} 33. Rxh1 {[%emt 0:00:04]} Rxa4 {[%emt 0:02:20]} 34. Qb3 {[%emt 0:01:02]}
Qa7 {[%emt 0:15:16]} 35. Nxf6+ {[%emt 0:01:31]} Bxf6 {[%emt 0:00:03]} 36. Qxg8+
{[%emt 0:00:06]} 1-0

[Event "44th Chess Olympiad Open 2022"]
[Site "Chennai"]
[Date "2022.08.07"]
[Round "9.71"]
[White "Lesbros Bernard"]
[Black "Uapingene, Uatiavi Jossy"]
[Result "1-0"]
[WhiteElo "1865"]
[BlackElo "1798"]
[Annotator "NA"]
[PlyCount "101"]
[EventDate "2022.??.??"]
[TimeControl "60"]

1. Nf3 {[%emt 0:01:26]} Nf6 {[%emt 0:00:08]} 2. c4 {[%emt 0:00:14]} e6 {
[%emt 0:00:32]} 3. g3 {[%emt 0:00:13]} c5 {[%emt 0:01:08]} 4. Bg2 {[%emt 0:00:
00]} Nc6 {[%emt 0:00:05]} 5. O-O {[%emt 0:01:37]} Be7 {[%emt 0:01:18]} 6. Nc3 {
[%emt 0:00:21]} a6 {[%emt 0:00:07]} 7. d4 {[%emt 0:00:30]} cxd4 {[%emt 0:00:21]
} 8. Nxd4 {[%emt 0:00:13]} O-O {[%emt 0:03:30]} 9. e4 {[%emt 0:06:17]} Ne5 {
[%emt 0:00:26]} 10. b3 {[%emt 0:07:01]} Bb4 {[%emt 0:05:23]} 11. Bb2 {[%emt 0:
00:00]} d6 {[%emt 0:00:53]} 12. Nc2 {[%emt 0:05:38]} Bc5 {[%emt 0:00:06]} 13.
Na4 {[%emt 0:00:57]} Ba7 {[%emt 0:00:33]} 14. c5 {[%emt 0:13:33]} b5 {[%emt 0:
00:00]} 15. cxd6 {[%emt 0:00:00]} Nfg4 {[%emt 0:04:24]} 16. Nc3 {[%emt 0:03:36]
} Qb6 {[%emt 0:18:51]} 17. Qe2 {[%emt 0:10:58]} b4 {[%emt 0:05:16]} 18. Na4 {
[%emt 0:02:30]} Qxd6 {[%emt 0:00:24]} 19. Rad1 {[%emt 0:01:25]} Qb8 {[%emt 0:
00:00]} 20. Kh1 {[%emt 0:05:32]} a5 {[%emt 0:00:33]} 21. f4 {[%emt 0:00:36]}
Nf2+ {[%emt 0:14:22]} 22. Rxf2 {[%emt 0:00:12]} Bxf2 {[%emt 0:00:04]} 23. Bxe5
{[%emt 0:03:50]} Qa7 {[%emt 0:00:11]} 24. Nd4 {[%emt 0:01:02]} Bxd4 {[%emt 0:
00:00]} 25. Bxd4 {[%emt 0:01:07]} Qa6 {[%emt 0:00:24]} 26. Qxa6 {[%emt 0:01:14]
} Bxa6 {[%emt 0:00:09]} 27. Bc5 {[%emt 0:08:50]} Rfd8 {[%emt 0:00:25]} 28. Bd6
{[%emt 0:00:23]} Rac8 {[%emt 0:00:32]} 29. e5 {[%emt 0:01:05]} Rc2 {[%emt 0:00:
00]} 30. Be4 {[%emt 0:01:20]} Rxa2 {[%emt 0:02:10]} 31. Nc5 {[%emt 0:00:24]}
Bb5 {[%emt 0:06:22]} 32. Rc1 {[%emt 0:02:24]} Rc8 {[%emt 0:02:06]} 33. Rc2 {
[%emt 0:09:53]} Ra1+ {[%emt 0:02:27]} 34. Kg2 {[%emt 0:00:23]} f5 {[%emt 0:00:
00]} 35. Bb7 {[%emt 0:02:03]} Bc6+ {[%emt 0:01:52]} 36. Bxc6 {[%emt 0:00:36]}
Rxc6 {[%emt 0:00:06]} 37. Kf3 {[%emt 0:03:24]} a4 {[%emt 0:02:40]} 38. bxa4 {
[%emt 0:00:00]} Ra3+ {[%emt 0:00:07]} 39. Ke2 {[%emt 0:00:22]} b3 {[%emt 0:00:
00]} 40. Rc1 {[%emt 0:02:00]} Ra2+ {[%emt 0:05:24]} 41. Kd3 {[%emt 0:04:30]}
Rxa4 {[%emt 0:02:38]} 42. Rb1 {[%emt 0:02:11]} Rb4 {[%emt 0:05:17]} 43. Nxe6 {
[%emt 0:06:06]} Rb5 {[%emt 0:00:18]} 44. Nd4 {[%emt 0:03:15]} Rd5 {[%emt 0:00:
00]} 45. Rxb3 {[%emt 0:00:48]} Rc1 {[%emt 0:00:09]} 46. Rb8+ {[%emt 0:02:03]}
Kf7 {[%emt 0:02:57]} 47. e6+ {[%emt 0:01:23]} Kf6 {[%emt 0:01:02]} 48. Rf8+ {
[%emt 0:00:22]} Kg6 {[%emt 0:00:08]} 49. e7 {[%emt 0:00:35]} Re1 {[%emt 0:00:
00]} 50. Be5 {[%emt 0:00:48]} Rxd4+ {[%emt 0:02:12]} 51. Kxd4 {[%emt 0:00:18]}
1-0

[Event "44th Chess Olympiad Open 2022"]
[Site "Chennai"]
[Date "2022.08.07"]
[Round "9.71"]
[White "Khoa, Goodwill"]
[Black "Badji, Sekou Aransbene"]
[Result "1-0"]
[WhiteElo "1850"]
[BlackElo "1732"]
[Annotator "NA RC"]
[PlyCount "79"]
[EventDate "2022.??.??"]
[TimeControl "60"]

1. d4 {[%emt 0:00:03]} Nf6 {[%emt 0:01:17]} 2. Nf3 {[%emt 0:00:30]} c6 {
[%emt 0:01:05]} 3. c4 {[%emt 0:01:05]} d6 {[%emt 0:00:20]} 4. Nc3 {[%emt 0:00:
00]} Bg4 {[%emt 0:00:23]} 5. e4 {[%emt 0:01:14]} Qc7 {[%emt 0:00:27]} 6. Be2 {
[%emt 0:00:14]} Nbd7 {[%emt 0:00:30]} 7. O-O {[%emt 0:01:51]} e5 {[%emt 0:00:
00]} 8. h3 {[%emt 0:00:42]} Bh5 {[%emt 0:00:08]} 9. Be3 {[%emt 0:01:37]} Be7 {
[%emt 0:00:11]} 10. Qd2 {[%emt 0:03:31]} O-O {[%emt 0:00:27]} 11. Rac1 {
[%emt 0:00:32]} Rfe8 {[%emt 0:02:31]} 12. Nh2 {[%emt 0:05:37]} Bg6 {[%emt 0:00:
00]} 13. Bd3 {[%emt 0:01:46]} Bf8 {[%emt 0:01:02]} 14. Rfe1 {[%emt 0:00:58]}
exd4 {[%emt 0:04:27]} 15. Bxd4 {[%emt 0:02:34]} c5 {[%emt 0:01:44]} 16. Nd5 {
[%emt 0:00:40]} Nxd5 {[%emt 0:00:36]} 17. cxd5 {[%emt 0:00:08]} f6 {[%emt 0:00:
00]} 18. b3 {[%emt 0:04:24]} Ne5 {[%emt 0:01:51]} 19. Bb1 {[%emt 0:00:33]} b5 {
[%emt 0:02:14]} 20. Bb2 {[%emt 0:00:40]} a5 {[%emt 0:02:53]} 21. f4 {[%emt 0:
00:00]} Nd7 {[%emt 0:00:23]} 22. Nf3 {[%emt 0:00:07]} a4 {[%emt 0:03:42]} 23.
Nd4 {[%emt 0:00:56]} Qb6 {[%emt 0:02:11]} 24. Ne6 {[%emt 0:00:46]} Bf7 {
[%emt 0:01:20]} 25. Re3 {[%emt 0:02:46]} Bxe6 {[%emt 0:01:29]} 26. dxe6 {
[%emt 0:00:06]} Rxe6 {[%emt 0:00:32]} 27. Qd5 {[%emt 0:00:10]} Rae8 {[%emt 0:
00:00]} 28. f5 {[%emt 0:00:07]} Ne5 {[%emt 0:01:37]} 29. fxe6 {[%emt 0:00:27]}
Kh8 {[%emt 0:00:17]} 30. Rg3 {[%emt 0:01:38]} a3 {[%emt 0:01:58]} 31. Bc3 {
[%emt 0:08:02]} Qa7 {[%emt 0:01:36]} 32. Rf1 {[%emt 0:00:55]} Be7 {[%emt 0:00:
00]} 33. Bxe5 {[%emt 0:04:17]} dxe5 {[%emt 0:00:11]} 34. Qd7 {[%emt 0:01:28]}
Qb8 {[%emt 0:01:02]} 35. Bd3 {[%emt 0:00:37]} c4 {[%emt 0:01:46]} 36. bxc4 {
[%emt 0:00:17]} bxc4 {[%emt 0:00:49]} 37. Bxc4 {[%emt 0:00:09]} Bc5+ {[%emt 0:
00:00]} 38. Kh2 {[%emt 0:00:33]} Re7 {[%emt 0:00:15]} 39. Qd5 {[%emt 0:00:49]}
Qc8 {[%emt 0:02:07]} 40. Ba6 {[%emt 0:00:56]} 1-0

[Event "44th Chess Olympiad Open 2022"]
[Site "Chennai"]
[Date "2022.08.07"]
[Round "9.71"]
[White "Diop, Wara"]
[Black "Ndahangwapo, Heskiel"]
[Result "0-1"]
[WhiteElo "1636"]
[BlackElo "1904"]
[Annotator "NA RC"]
[PlyCount "50"]
[EventDate "2022.??.??"]
[TimeControl "60"]

1. e4 {[%emt 0:00:28]} c5 {[%emt 0:00:27]} 2. Nf3 {[%emt 0:00:14]} d6 {[%emt 0:
00:00]} 3. Bc4 {[%emt 0:01:34]} e6 {[%emt 0:00:04]} 4. c3 {[%emt 0:01:56]} Nf6
{[%emt 0:00:06]} 5. e5 {[%emt 0:02:17]} dxe5 {[%emt 0:00:06]} 6. Nxe5 {[%emt 0:
00:00]} Be7 {[%emt 0:00:07]} 7. O-O {[%emt 0:01:59]} O-O {[%emt 0:00:05]} 8. d4
{[%emt 0:00:54]} cxd4 {[%emt 0:00:26]} 9. Qxd4 {[%emt 0:01:25]} Qc7 {[%emt 0:
00:00]} 10. Bf4 {[%emt 0:03:02]} Bd6 {[%emt 0:00:32]} 11. Na3 {[%emt 0:05:08]}
a6 {[%emt 0:00:05]} 12. Bb3 {[%emt 0:01:32]} b5 {[%emt 0:01:45]} 13. Rad1 {
[%emt 0:06:22]} Bc5 {[%emt 0:02:59]} 14. Qd3 {[%emt 0:08:29]} Nh5 {[%emt 0:00:
00]} 15. Bc2 {[%emt 0:02:12]} f5 {[%emt 0:00:00]} 16. Qf3 {[%emt 0:02:19]} Nxf4
{[%emt 0:00:08]} 17. Qxf4 {[%emt 0:01:53]} Bd6 {[%emt 0:00:09]} 18. Rfe1 {
[%emt 0:04:50]} Nc6 {[%emt 0:01:18]} 19. Qf3 {[%emt 0:01:52]} Nxe5 {[%emt 0:00:
00]} 20. Rxe5 {[%emt 0:04:03]} Bxe5 {[%emt 0:00:24]} 21. Qxa8 {[%emt 0:01:03]}
Bb7 {[%emt 0:00:09]} 22. Nxb5 {[%emt 0:02:51]} Qc6 {[%emt 0:00:43]} 23. Qxf8+ {
[%emt 0:02:40]} Kxf8 {[%emt 0:00:06]} 24. f3 {[%emt 0:01:25]} Qxb5 {[%emt 0:00:
00]} 25. Bb3 {[%emt 0:00:42]} Qe2 {[%emt 0:00:16]} 0-1

[Event "44th Chess Olympiad Open 2022"]
[Site "Chennai"]
[Date "2022.08.07"]
[Round "9.72"]
[White "Ortega Amarelle, Mariano"]
[Black "Moncur, Cecil"]
[Result "1-0"]
[WhiteElo "2463"]
[BlackElo "1815"]
[Annotator "TA"]
[PlyCount "71"]
[EventDate "2022.??.??"]
[TimeControl "60"]

{[%evp 23,71,15,83,83,80,80,75,71,88,101,98,100,107,105,144,143,141,138,175,
176,165,167,230,230,233,233,239,243,239,210,279,254,389,261,781,771,1168,1175,
1422,1503,1466,1308,29980,29981,29990,29991,29993,29994,29994,29995]} 1. e4 {
[%emt 0:00:08]} c5 {[%emt 0:00:16]} 2. Nf3 {[%emt 0:00:07]} e6 {[%emt 0:00:09]}
3. d4 {[%emt 0:00:08]} cxd4 {[%emt 0:00:15]} 4. Nxd4 {[%emt 0:00:06]} Nf6 {
[%emt 0:00:19]} 5. Nc3 {[%emt 0:00:06][%cal Yb1c3,Yc3e4,Ye4f2,Yf2d3]} Nc6 {
[%emt 0:00:35]} 6. Nxc6 {[%emt 0:00:47]} bxc6 {[%emt 0:00:10]} 7. e5 {[%emt 0:
00:12]} Nd5 {[%emt 0:00:14]} 8. Ne4 {[%emt 0:00:11]} Qc7 {[%emt 0:00:00]} 9. f4
{[%emt 0:00:24]} Qb6 {[%emt 0:00:14]} 10. c4 {[%emt 0:00:39]} Bb4+ {[%emt 0:00:
12]} 11. Ke2 {[%emt 0:00:21]} f5 {[%emt 0:00:28]} 12. Nf2 {[%emt 0:00:00]} Bc5
{[%emt 0:00:20]} (12... Ba6 $11) 13. Nd3 $16 {[%emt 0:00:56] Black is on the
road to losing. B45: Sicilian Four Knights.} Ne3 {[%emt 0:00:24]} 14. Qb3 {
[%emt 0:00:28]} Nxf1 {[%emt 0:01:59]} 15. Qxb6 $1 {[%emt 0:00:34] White is
better.} ({But not} 15. Rxf1 Be7 $11) ({Much weaker is} 15. Nxc5 Qxc5 16. Qc3
Ba6 $1 $11) 15... Ng3+ {[%emt 0:00:51]} 16. hxg3 {[%emt 0:00:27]} Bxb6 {
[%emt 0:00:48]} 17. Be3 {[%emt 0:00:14][%cal Yc1e3,Ye3c5,Yc5d6]} Ba6 {[%emt 0:
02:15]} 18. b3 {[%emt 0:00:27] [#]} Ke7 $146 {[%emt 0:02:41] [#]} ({
Predecessor:} 18... h5 19. Bc5 Bb7 20. a4 Bd8 21. a5 a6 22. Ra4 Rh6 23. Kf2 Rh8
24. Kf3 Rh6 {1-0 (37) Ordyan,V (2378)-Mezhlumyan,V (2198) Yerevan 2004}) 19.
Bc5+ $1 {[%emt 0:05:54]} Kf7 {[%emt 0:00:58]} 20. a4 {[%emt 0:10:46][%cal
Ya2a4,Ya4a5,Ya5a6] White is more active.} h6 {[%emt 0:04:49]} 21. a5 {[%emt 0:
01:18]} Bc7 {[%emt 0:01:21]} 22. Bd6 {[%emt 0:00:56]} Bd8 {[%emt 0:00:00]} (
22... Bxd6 $142 23. exd6 Rhd8) 23. Nc5 $18 {[%emt 0:16:12][%csl Ya6,Yd7]} Bc8 {
[%emt 0:00:14]} 24. a6 {[%emt 0:01:04]} Bb6 {[%emt 0:01:14]} 25. Nb7 {[%emt 0:
04:17]} Ke8 {[%emt 0:06:04]} 26. b4 {[%emt 0:03:07][%cal Yb3b4,Yb4b5]} h5 {
[%emt 0:01:26]} 27. b5 {[%emt 0:05:59]} g6 {[%emt 0:01:00]} (27... Kf7 $142 28.
c5 Bd8 29. Nxd8+ Rxd8) 28. Rhb1 {[%emt 0:00:26] aiming for c5.} Rh7 $2 {
[%emt 0:01:20]} (28... cxb5 29. cxb5 Kf7) 29. c5 {[%emt 0:00:00]} Bd8 {[%emt 0:
00:34]} 30. b6 {[%emt 0:00:35]} h4 {[%emt 0:01:56]} 31. Nxd8 {[%emt 0:00:29]
Intending b7 and mate.} axb6 {[%emt 0:01:45] [#]} 32. cxb6 $1 {[%emt 0:00:51]
White wants to mate with b7.} Bxa6+ {[%emt 0:00:34] [#]} (32... Rxa6 33. b7)
33. Rxa6 $1 {[%emt 0:00:35] White mates.} Rxa6 {[%emt 0:00:48]} (33... Rxd8 34.
Bc7) 34. b7 {[%emt 0:00:07]} hxg3 {[%emt 0:00:21]} 35. b8=Q {[%emt 0:00:15]}
Ra2+ {[%emt 0:00:21]} 36. Kd3 {[%emt 0:00:26] Weighted Error Value: White=0.09
(flawless) /Black=0.48} 1-0